bitfinex/quotes_SOLUSD_20240902
["timestamp","ask_amount","ask_price","bid_price","bid_amount"]
[1725239122401,41.5822,130.03,129.93,45.0]
[1725239122602,41.5822,130.03,129.94,1.53868107]
[1725239122807,7.6927,130.0,129.95,7.695]
[1725239123006,7.6927,130.0,129.96,1.53856224]
[1725239123214,7.6927,130.0,129.95,7.695]
[1725239123429,7.6917,130.01,129.96,7.81999]
[1725239123600,19.2221,130.06,129.96,1.66406157]
[1725239123799,19.2221,130.06,129.96,19.36139]
[1725239124121,19.2221,130.06,129.96,19.2359]
[1725239124594,38.4466,130.06,129.93,35.3505]
[1725239124793,7.6936,129.98,129.93,43.0463]
[1725239124990,7.6936,129.98,129.94,1.53877355]
[1725239125211,7.6936,129.98,129.93,43.0463]
[1725239126525,19.229,130.02,129.93,43.0463]
[1725239126526,7.6941,129.97,129.93,43.0463]
[1725239126693,7.6941,129.97,129.93,26.9363]
[1725239129025,7.6941,129.97,129.94,1.53886702]
[1725239129207,7.6941,129.97,129.93,26.9363]
[1725239132624,19.229,130.02,129.93,19.2405]
[1725239132830,7.693,129.99,129.94,52.94658]
[1725239132994,7.693,129.99,129.95,7.695]
[1725239133198,7.6924,130.0,129.96,7.6946]
[1725239133398,20.81924129,130.05,129.96,7.6946]
[1725239133399,7.6919,130.01,129.97,1.53848254]
[1725239133615,19.2239,130.05,129.95,19.2377]
[1725239133820,7.6912,130.02,129.97,24.1401]
[1725239135418,7.6923,130.0,129.97,16.4462]
[1725239135625,19.2239,130.05,129.97,16.4462]
[1725239136133,7.6918,130.01,129.97,16.4462]
[1725239137207,7.6918,130.01,129.97,24.14]
[1725239137808,7.6913,130.02,129.97,24.14]
[1725239138010,7.6906,130.03,129.98,7.6932]
[1725239138210,20.0,130.04,129.98,7.6932]
[1725239138211,7.6912,130.02,129.98,7.6932]
[1725239138949,7.6912,130.02,129.97,49.6077]
[1725239139105,7.6917,130.01,129.97,49.6077]
[1725239140207,20.0,130.04,129.98,7.6933]
[1725239140730,7.691,130.03,129.98,7.6933]
[1725239140928,7.691,130.03,129.99,45.0]
[1725239141121,7.691,130.03,129.99,52.6928]
[1725239143014,7.691,130.03,129.99,7.6928]
[1725239143417,7.691,130.03,129.98,7.81869]
[1725239143633,7.6911,130.02,129.97,41.9138]
[1725239144014,7.6941,129.97,129.94,40.4832]
[1725239144344,7.6957,129.95,129.91,25.6991]
[1725239144541,19.2312,130.0,129.91,33.3967]
[1725239144542,7.6948,129.96,129.91,33.3967]
[1725239145132,7.6948,129.96,129.92,7.6969]
[1725239145440,7.6948,129.96,129.91,33.3963]
[1725239145646,7.6964,129.93,129.9,15.0065]
[1725239145850,7.6973,129.92,129.88,19.248]
[1725239146139,7.6965,129.93,129.88,26.9473]
[1725239147146,7.6965,129.93,129.89,45.0]
[1725239147437,7.6972,129.92,129.88,19.248]
[1725239148706,7.6964,129.94,129.88,26.9468]
[1725239148926,19.2346,129.98,129.88,26.9468]
[1725239148927,7.6965,129.93,129.88,26.9468]
[1725239149340,7.6965,129.93,129.89,45.0]
[1725239150239,21.8422,130.01,129.9,19.2446]
[1725239150240,41.0721,130.01,129.9,19.2446]
[1725239150541,20.0,130.0,129.9,19.2446]
[1725239151341,7.6953,129.95,129.9,26.9425]
[1725239151510,7.6946,129.97,129.9,19.2446]
[1725239151716,7.6946,129.96,129.92,7.6969]
[1725239153213,7.6941,129.97,129.93,7.6964]
[1725239153415,7.6935,129.98,129.94,1.53880246]
[1725239154332,7.6935,129.98,129.93,7.6964]
[1725239155225,7.6929,129.99,129.94,7.6956]
[1725239156123,7.6942,129.97,129.93,0.12549]
[1725239156441,7.6942,129.97,129.93,52.94718]
[1725239157149,41.0721,130.01,129.92,19.2415]
[1725239157321,7.6955,129.95,129.91,7.697]
[1725239157531,7.6955,129.95,129.92,45.0]
[1725239157835,7.6955,129.95,129.91,7.697]
[1725239158351,7.696,129.94,129.9,7.698]
[1725239158851,7.696,129.94,129.89,26.9449]
[1725239159447,7.696,129.94,129.9,1.53926621]
[1725239160233,7.6964,129.93,129.9,1.53926621]
[1725239160428,7.6964,129.93,129.89,19.2462]
[1725239160631,22.6142,129.99,129.84,15.6144]
[1725239160844,7.7004,129.87,129.83,25.5611]
[1725239161045,7.7004,129.87,129.8,15.6144]
[1725239161046,7.7012,129.85,129.8,48.6671]
[1725239161257,39.37029,129.91,129.8,48.6671]
[1725239161427,7.7007,129.86,129.8,48.6671]
[1725239161629,7.7007,129.86,129.81,7.7033]
[1725239163852,7.7013,129.85,129.8,48.6675]
[1725239165027,7.7006,129.86,129.81,9.24375125]
[1725239165439,7.7006,129.86,129.81,7.7035]
[1725239168053,7.7013,129.85,129.8,26.964]
[1725239168756,7.7043,129.8,129.77,16.4063]
[1725239168926,7.7043,129.8,129.76,7.7063]
[1725239169127,7.7043,129.8,129.74,42.8022]
[1725239169535,7.7043,129.8,129.75,7.7068]
[1725239170271,7.7048,129.79,129.75,7.7068]
[1725239172165,60.3744,129.85,129.71,7.7089]
[1725239172470,60.3744,129.85,129.7,41.2677]
[1725239172471,65.12549,129.84,129.7,41.2677]
[1725239173350,7.7059,129.78,129.73,7.7081]
[1725239173654,7.7059,129.78,129.74,45.0]
[1725239173848,7.706,129.77,129.72,7.7087]
[1725239174246,22.8899,129.78,129.72,7.7087]
[1725239175362,30.5952,129.78,129.73,7.7083]
[1725239175872,22.8899,129.78,129.73,26.9788]
[1725239176157,22.8899,129.78,129.73,19.2706]
[1725239177061,22.8899,129.78,129.75,7.707]
[1725239177855,22.8899,129.78,129.76,7.7064]
[1725239178058,22.8899,129.78,129.75,7.7069]
[1725239178763,22.8899,129.78,129.76,7.7064]
[1725239179372,22.8899,129.78,129.73,19.2706]
[1725239179557,22.8899,129.78,129.75,7.7066]
[1725239180071,30.7724,129.86,129.81,7.7035]
[1725239180251,30.7724,129.86,129.82,7.7029]
[1725239180441,30.7724,129.86,129.81,7.7035]
[1725239180642,23.0717,129.86,129.82,7.7028]
[1725239180847,23.0717,129.86,129.81,19.2582]
[1725239181246,23.0717,129.86,129.81,26.9612]
[1725239181447,30.7727,129.86,129.81,26.9612]
[1725239181960,7.7025,129.83,129.78,26.968]
[1725239182146,7.7025,129.83,129.79,7.7047]
[1725239182347,7.7018,129.84,129.79,7.7047]
[1725239183658,23.0717,129.86,129.78,26.968]
[1725239183870,65.12549,129.85,129.78,26.968]
[1725239184985,65.12549,129.85,129.72,15.6988]
[1725239185142,7.7065,129.76,129.72,19.2717]
[1725239185347,21.7598,129.81,129.72,19.2717]
[1725239185850,7.7058,129.78,129.73,7.7083]
[1725239186458,7.7048,129.79,129.74,7.7076]
[1725239188246,7.7058,129.78,129.73,9.24943528]
[1725239188443,7.7058,129.78,129.73,7.7082]
[1725239188650,21.7598,129.81,129.74,19.2681]
[1725239188855,0.12549,129.8,129.74,19.2681]
[1725239189347,21.7598,129.81,129.75,1.54129734]
[1725239189570,84.2535,129.85,129.75,1.54129734]
[1725239189571,6.5761,129.84,129.79,7.7047]
[1725239189755,7.7024,129.83,129.78,26.9671]
[1725239190193,7.703,129.82,129.78,19.2619]
[1725239190473,7.703,129.82,129.77,7.7059]
[1725239190672,7.7025,129.83,129.78,7.7053]
[1725239190880,7.7029,129.82,129.78,7.7053]
[1725239191551,7.7028,129.83,129.78,7.7053]
[1725239192177,6.5761,129.84,129.77,7.7058]
[1725239192178,7.703,129.82,129.77,7.7058]
[1725239193157,7.7041,129.81,129.76,7.7065]
[1725239193561,7.7041,129.81,129.77,7.7058]
[1725239194672,7.7029,129.82,129.77,7.7058]
[1725239195566,6.5761,129.84,129.81,7.7033]
[1725239195775,16.5997,129.85,129.81,7.7033]
[1725239196494,16.5997,129.85,129.82,9.24314156]
[1725239196793,7.701,129.86,129.82,1.54044156]
[1725239196974,7.702,129.84,129.79,7.7046]
[1725239197278,6.1039,129.87,129.76,7.7064]
[1725239197458,7.704,129.81,129.76,7.7064]
[1725239197661,7.7031,129.82,129.77,9.24672001]
[1725239198478,34.6313,129.86,129.76,7.7064]
[1725239198790,7.7051,129.79,129.75,19.2671]
[1725239199280,7.7051,129.79,129.75,26.9741]
[1725239199458,7.7051,129.79,129.75,19.2671]
[1725239200171,6.1355,129.81,129.72,46.2529]
[1725239200172,7.7059,129.77,129.72,46.2529]
[1725239200365,7.7066,129.76,129.72,7.7087]
[1725239200574,7.7074,129.75,129.71,19.2725]
[1725239201092,7.7089,129.72,129.68,19.2776]
[1725239201585,7.7082,129.74,129.69,1.54201534]
[1725239201785,7.7077,129.74,129.69,9.25261534]
[1725239201969,6.2445,129.76,129.68,19.2776]
[1725239202171,7.7091,129.72,129.68,19.2776]
[1725239202362,7.7081,129.74,129.68,28.53063054]
[1725239202881,7.7081,129.74,129.69,7.7105]
[1725239203185,7.7077,129.74,129.69,9.25223921]
[1725239203888,7.7071,129.75,129.7,7.7099]
[1725239205082,6.2445,129.76,129.68,19.2776]
[1725239205391,7.7083,129.73,129.68,26.9884]
[1725239205570,7.7077,129.74,129.69,9.25246342]
[1725239205764,7.7077,129.74,129.69,7.7105]
[1725239206391,6.2445,129.76,129.68,19.2776]
[1725239206578,6.2445,129.76,129.69,1.54197422]
[1725239206761,6.5293,129.79,129.72,7.7083]
[1725239206964,65.0,129.78,129.71,7.7093]
[1725239207187,7.7078,129.74,129.7,19.2739]
[1725239207377,65.0,129.78,129.7,26.9839]
[1725239207573,7.7059,129.77,129.72,7.7086]
[1725239207884,7.7066,129.76,129.71,9.25095068]
[1725239208085,7.7066,129.76,129.72,1.54155505]
[1725239208464,7.7066,129.76,129.71,7.7094]
[1725239208669,20.0,129.78,129.7,19.2739]
[1725239208670,7.7058,129.78,129.7,19.2739]
[1725239208968,7.7037,129.81,129.76,7.7064]
[1725239209160,7.7042,129.8,129.75,7.7069]
[1725239209571,7.7051,129.79,129.74,26.9756]
[1725239210477,21.5525,129.83,129.76,19.2654]
[1725239211986,0.12549,129.82,129.76,19.2654]
[1725239212993,7.7045,129.8,129.76,19.2654]
[1725239213169,7.7041,129.8,129.76,20.80636103]
[1725239213364,21.5525,129.83,129.73,20.81162329]
[1725239213365,7.705,129.79,129.73,20.81162329]
[1725239213565,7.705,129.79,129.74,1.54121285]
[1725239213967,7.7053,129.78,129.74,1.54130017]
[1725239214797,7.7053,129.78,129.73,26.9784]
[1725239215163,7.7053,129.78,129.73,28.51977991]
[1725239215473,7.7053,129.78,129.74,9.24887912]
[1725239216900,7.7065,129.76,129.72,7.7087]
[1725239217192,19.26,129.81,129.72,7.7087]
[1725239217383,7.7067,129.76,129.72,7.7087]
[1725239218693,7.7073,129.75,129.7,19.2747]
[1725239218868,19.2624,129.79,129.7,26.9842]
[1725239219074,7.7088,129.73,129.67,19.2788]
[1725239219383,7.7091,129.72,129.68,7.7108]
[1725239219584,7.7091,129.72,129.67,26.9905]
[1725239219981,7.7097,129.71,129.67,26.9905]
[1725239220187,7.7097,129.71,129.67,19.2788]
[1725239221202,7.7097,129.71,129.67,28.53253772]
[1725239221508,7.7097,129.71,129.67,26.9905]
[1725239221702,7.7097,129.71,129.68,1.54203746]
[1725239222198,7.7105,129.7,129.68,1.54203746]
[1725239222410,19.2684,129.75,129.64,19.2835]
[1725239222411,7.7117,129.68,129.64,19.2835]
[1725239222706,7.7108,129.69,129.64,28.53903943]
[1725239222898,19.2666,129.76,129.66,7.7124]
[1725239223111,65.12549,129.75,129.66,7.7124]
[1725239223400,65.12549,129.75,129.67,1.54220708]
[1725239223580,7.7107,129.69,129.64,26.997]
[1725239223782,7.7113,129.68,129.64,19.2835]
[1725239224199,19.2745,129.71,129.62,15.4862]
[1725239224402,21.94409,129.7,129.62,15.4862]
[1725239224895,7.7119,129.67,129.62,23.2005]
[1725239225483,7.7119,129.67,129.63,1.54261475]
[1725239225678,7.7119,129.67,129.62,23.2005]
[1725239227191,7.7119,129.67,129.62,7.7143]
[1725239227392,7.7132,129.65,129.61,1.5427053]
[1725239227700,21.94409,129.7,129.65,7.7129]
[1725239227911,29.5287,129.7,129.62,1.54287004]
[1725239228072,22.997,129.7,129.65,7.713]
[1725239228272,7.7096,129.71,129.66,9.25475485]
[1725239229102,7.7102,129.7,129.65,7.7129]
[1725239229610,22.6742,129.73,129.64,19.2833]
[1725239229611,22.6742,129.73,129.66,1.54221399]
[1725239229785,16.6582,129.76,129.67,19.2791]
[1725239229981,16.6582,129.76,129.68,1.54191405]
[1725239230614,7.7078,129.74,129.69,7.7102]
[1725239230904,7.7066,129.76,129.7,9.25121267]
[1725239231115,7.7066,129.76,129.71,7.7093]
[1725239231478,34.396,129.79,129.74,7.7076]
[1725239231479,15.1327,129.79,129.74,7.7076]
[1725239231679,13.8707,129.8,129.75,1.54134743]
[1725239232299,7.7049,129.79,129.73,7.7082]
[1725239234029,7.7049,129.79,129.74,1.54123143]
[1725239234375,7.7049,129.79,129.73,7.7082]
[1725239235810,7.7049,129.79,129.74,1.54124115]
[1725239236010,21.6178,129.83,129.74,19.2681]
[1725239236312,7.7037,129.81,129.76,7.7064]
[1725239236681,21.3491,129.86,129.77,1.54087551]
[1725239236901,7.703,129.82,129.77,19.2636]
[1725239237225,7.703,129.82,129.77,26.9689]
[1725239237508,7.703,129.82,129.78,1.54075008]
[1725239237705,7.703,129.82,129.77,26.9689]
[1725239237907,38.5063,129.85,129.74,19.269]
[1725239238312,7.7048,129.79,129.74,19.269]
[1725239238497,19.2571,129.83,129.74,19.269]
[1725239238684,7.7046,129.8,129.75,7.7071]
[1725239238884,7.7048,129.79,129.74,26.9765]
[1725239239592,7.7055,129.78,129.74,19.269]
[1725239239792,7.7055,129.78,129.74,20.81014466]
[1725239240214,7.7055,129.78,129.74,19.269]
[1725239241295,19.26,129.81,129.72,16.2054]
[1725239241613,88.32679,129.8,129.72,16.2054]
[1725239241914,7.7072,129.75,129.71,19.273]
[1725239242320,7.7072,129.75,129.71,26.9823]
[1725239242511,7.7066,129.76,129.72,1.51085466]
[1725239245222,88.32679,129.8,129.72,1.51085466]
[1725239245427,88.32679,129.8,129.7,6.1794]
[1725239245624,7.7088,129.73,129.69,23.5535]
[1725239246536,7.7095,129.71,129.67,6.5328]
[1725239246722,7.7097,129.71,129.67,14.2444]
[1725239247032,38.5266,129.79,129.66,16.1072]
[1725239247033,7.7102,129.7,129.66,16.1072]
[1725239247199,21.2623,129.74,129.65,26.9949]
[1725239247525,7.71,129.71,129.66,1.54230684]
[1725239247915,7.7105,129.7,129.65,26.9949]
[1725239248423,21.2623,129.74,129.66,1.54221522]
[1725239248600,22.6686374,129.78,129.63,22.64]
[1725239248601,7.7091,129.72,129.67,26.9899]
[1725239248800,7.7084,129.73,129.68,7.7111]
[1725239249408,16.2624,129.77,129.69,20.81741559]
[1725239249631,7.7078,129.74,129.7,7.71]
[1725239251413,7.7078,129.74,129.69,26.9861]
[1725239251826,7.7063,129.77,129.72,7.7088]
[1725239252001,7.7063,129.77,129.73,1.54138469]
[1725239252325,7.7054,129.78,129.74,1.54131758]
[1725239252508,7.7055,129.78,129.74,9.24861758]
[1725239252917,38.5063,129.85,129.74,1.54131758]
[1725239252918,34.2615,129.84,129.74,1.54131758]
[1725239253119,34.2615,129.84,129.73,19.2698]
[1725239253319,7.7058,129.78,129.73,26.978]
[1725239254013,7.7058,129.78,129.74,1.54126236]
[1725239255231,7.7058,129.78,129.74,9.24886236]
[1725239255433,7.7058,129.78,129.74,7.7076]
[1725239255839,34.2615,129.84,129.75,7.707]
[1725239256012,20.0,129.83,129.75,7.707]
[1725239256207,7.7043,129.8,129.76,1.54103787]
[1725239256407,7.7043,129.8,129.76,7.7064]
[1725239256948,7.7043,129.8,129.77,1.54093741]
[1725239257238,34.2615,129.84,129.77,52.55973741]
[1725239257239,7.7018,129.84,129.77,52.55973741]
[1725239257424,16.0641,129.87,129.77,51.0188]
[1725239257627,7.7024,129.83,129.78,9.24583979]
[1725239257937,7.7018,129.84,129.79,7.7046]
[1725239258430,7.7013,129.85,129.8,7.7041]
[1725239258656,7.6994,129.88,129.83,7.7019]
[1725239258851,16.5343,129.92,129.84,9.24172804]
[1725239258852,42.2627,129.92,129.84,9.24172804]
[1725239259519,42.2627,129.92,129.85,7.7011]
[1725239259713,42.2627,129.92,129.84,28.49612804]
[1725239259714,7.6988,129.89,129.84,28.49612804]
[1725239259933,43.90580437,129.92,129.82,1.53994811]
[1725239260135,7.7005,129.87,129.83,1.54017513]
[1725239260524,7.6995,129.88,129.83,1.54017513]
[1725239260722,7.6995,129.88,129.83,7.7023]
[1725239260919,7.6995,129.88,129.84,1.54002922]
[1725239261638,7.6988,129.89,129.84,9.24162922]
[1725239262012,7.6988,129.89,129.84,7.7016]
[1725239262636,7.6983,129.9,129.86,7.7006]
[1725239262815,7.6976,129.91,129.87,1.53968933]
[1725239263011,7.6976,129.91,129.86,7.7006]
[1725239263214,7.6976,129.91,129.87,1.53962594]
[1725239263935,7.6965,129.93,129.88,7.6992]
[1725239264135,7.6965,129.93,129.89,1.53941656]
[1725239265435,7.6971,129.92,129.87,7.6998]
[1725239266020,7.6971,129.92,129.88,1.53957809]
[1725239266225,7.6971,129.92,129.87,7.6998]
[1725239266735,19.2343,129.98,129.88,20.12983814]
[1725239266948,19.2343,129.98,129.89,46.79009017]
[1725239267120,7.6948,129.96,129.91,7.6976]
[1725239267321,7.6948,129.96,129.92,1.53899096]
[1725239267523,7.6948,129.96,129.91,7.6976]
[1725239267727,22.0134,130.0,129.9,19.2446]
[1725239268020,7.6953,129.95,129.9,19.2446]
[1725239268342,7.6954,129.95,129.9,26.9427]
[1725239268661,7.6959,129.94,129.89,7.6983]
[1725239268861,7.6953,129.95,129.9,7.6981]
[1725239269233,7.6947,129.96,129.91,7.6974]
[1725239269421,7.6953,129.95,129.9,7.6982]
[1725239270429,7.6958,129.94,129.9,7.6982]
[1725239270918,7.6958,129.94,129.89,7.6987]
[1725239271829,7.6958,129.94,129.9,1.53928411]
[1725239272031,7.6958,129.94,129.89,7.6987]
[1725239273731,19.233,129.99,129.9,7.6981]
[1725239273732,7.6953,129.95,129.9,7.6981]
[1725239274126,19.233,129.99,129.89,7.6986]
[1725239274438,20.0,129.98,129.89,7.6986]
[1725239275033,45.12549,129.97,129.9,7.6977]
[1725239275547,7.6957,129.95,129.91,7.6975]
[1725239275931,7.6947,129.96,129.91,7.6975]
[1725239276246,19.233,129.99,129.92,7.6967]
[1725239276460,22.0134,130.0,129.93,1.53894132]
[1725239276830,7.6939,129.98,129.93,9.23524132]
[1725239277757,7.6942,129.97,129.93,9.23524132]
[1725239277926,7.6942,129.97,129.93,7.6963]
[1725239278645,22.0134,130.0,129.89,19.2462]
[1725239278848,65.12549,129.99,129.89,19.2462]
[1725239279034,7.6959,129.94,129.89,26.9445]
[1725239279529,7.6959,129.94,129.9,7.698]
[1725239279724,7.6952,129.96,129.91,19.2433]
[1725239279951,7.6954,129.95,129.91,26.9407]
[1725239280334,7.696,129.94,129.89,7.6987]
[1725239280954,7.696,129.94,129.9,7.6981]
[1725239281844,65.0,129.99,129.88,22.07409]
[1725239282156,7.6942,129.97,129.92,7.6964]
[1725239282352,7.6942,129.97,129.93,7.6964]
[1725239282658,15.9593,130.03,129.96,7.6943]
[1725239282850,15.9593,130.03,129.97,20.59764083]
[1725239283048,6.6414,130.04,129.97,19.35989]
[1725239283446,7.6916,130.02,129.97,27.05389]
[1725239283959,7.6929,129.99,129.95,7.6951]
[1725239284167,25.867,130.04,129.94,27.06049]
[1725239284336,25.867,130.04,129.92,54.1635]
[1725239284337,7.6948,129.96,129.92,15.6783]
[1725239284680,7.6941,129.97,129.92,23.3748]
[1725239287641,19.2315,130.0,129.9,6.0018]
[1725239287642,7.696,129.94,129.9,6.0018]
[1725239287842,7.696,129.94,129.89,7.6982]
[1725239288053,7.6953,129.95,129.9,7.698]
[1725239288360,35.0227,130.0,129.91,19.2438]
[1725239288656,7.6942,129.97,129.91,19.2438]
[1725239289069,7.6942,129.97,129.92,45.25098]
[1725239289248,7.6942,129.97,129.93,7.6963]
[1725239289449,7.6942,129.97,129.92,45.12549]
[1725239289850,7.6942,129.97,129.92,52.82199]
[1725239290052,7.6929,129.99,129.94,7.6957]
[1725239290664,7.6942,129.97,129.93,19.2399]
[1725239292266,7.6942,129.97,129.93,26.9362]
[1725239293155,61.92977763,130.04,129.9,19.245]
[1725239293361,7.696,129.94,129.9,19.245]
[1725239293534,7.696,129.94,129.89,7.6987]
[1725239293738,7.696,129.94,129.9,7.698]
[1725239294037,6.0852,129.98,129.92,7.6968]
[1725239294238,16.4548,130.0,129.93,19.2396]
[1725239294438,24.1471,130.0,129.95,7.6952]
[1725239294634,7.6923,130.0,129.95,7.6952]
[1725239295259,7.6931,129.99,129.94,7.6957]
[1725239297561,7.6935,129.98,129.94,7.6957]
[1725239298059,7.6929,129.99,129.94,7.6957]
[1725239298245,7.6929,129.99,129.95,45.0]
[1725239298564,19.2287,130.02,129.95,45.0]
[1725239298565,7.6924,130.0,129.95,52.6952]
[1725239299265,7.6924,130.0,129.96,7.6946]
[1725239299968,7.6918,130.01,129.97,9.23233696]
[1725239300460,7.6918,130.01,129.97,7.6939]
[1725239300671,7.6918,130.01,129.98,1.53833665]
[1725239301156,7.6918,130.01,129.97,7.6939]
[1725239301556,16.4548,130.03,129.98,7.6934]
[1725239301557,7.6911,130.02,129.98,7.6934]
[1725239302263,19.2238,130.05,129.99,19.2316]
[1725239302264,7.6896,130.05,129.99,19.2316]
[1725239302452,7.6888,130.06,130.01,7.6915]
[1725239302653,16.5394,130.09,130.02,46.53780201]
[1725239302866,6.5083,130.11,130.04,7.6898]
[1725239303044,6.5083,130.11,130.05,1.53751705]
[1725239303759,7.6876,130.08,130.04,7.6898]
[1725239303964,6.5083,130.11,130.04,7.6898]
[1725239304164,24.2246,130.12,130.07,7.6881]
[1725239304356,7.6852,130.12,130.07,7.6881]
[1725239304562,7.6858,130.11,130.06,7.6886]
[1725239305449,19.2114,130.14,130.05,19.2223]
[1725239305655,19.2114,130.14,130.04,7.6898]
[1725239305656,7.687,130.09,130.04,7.6898]
[1725239308375,7.6877,130.08,130.03,7.6903]
[1725239308872,21.6475,130.15,130.04,1.78850325]
[1725239309100,7.6853,130.12,130.04,1.78850325]
[1725239309377,7.6853,130.12,130.07,7.688]
[1725239309679,7.6864,130.1,130.06,19.221]
[1725239310358,38.4223,130.14,130.02,7.6908]
[1725239310560,7.6882,130.07,130.03,7.6904]
[1725239310864,7.6888,130.06,130.01,16.3547]
[1725239311062,7.6881,130.08,130.01,16.3547]
[1725239311269,7.6881,130.08,130.03,7.6904]
[1725239311451,7.687,130.09,130.04,7.6897]
[1725239311647,45.12549,130.13,130.04,19.224]
[1725239311854,20.0,130.12,130.04,19.224]
[1725239312256,20.0,130.12,130.05,45.0]
[1725239312462,19.2101,130.14,130.05,52.6893]
[1725239312463,7.6871,130.09,130.05,52.6893]
[1725239313872,7.6875,130.08,130.04,26.9138]
[1725239314098,7.6875,130.08,130.04,19.224]
[1725239315076,7.6875,130.08,130.04,26.9137]
[1725239315277,7.6875,130.08,130.05,45.0]
[1725239315466,7.6875,130.08,130.04,19.224]
[1725239316600,7.6883,130.07,130.02,7.691]
[1725239316756,7.6883,130.07,130.03,1.53770236]
[1725239316955,7.6883,130.07,130.03,9.22820236]
[1725239317781,7.6883,130.07,130.03,7.6905]
[1725239317957,7.6877,130.08,130.03,7.6905]
[1725239319461,7.6883,130.07,130.03,7.6905]
[1725239319863,7.6873,130.09,130.04,7.81519]
[1725239320063,7.6873,130.09,130.04,7.94068]
[1725239322294,20.0,130.13,130.04,0.25098]
[1725239322295,7.6864,130.1,130.04,0.25098]
[1725239322511,79.2768,130.15,130.05,19.2228]
[1725239322512,40.857,130.15,130.05,19.2228]
[1725239322669,40.857,130.15,130.06,0.12549]
[1725239322870,7.6863,130.11,130.06,7.6886]
[1725239323070,7.6858,130.11,130.06,7.6886]
[1725239323593,7.6869,130.09,130.05,26.9119]
[1725239323790,7.6877,130.08,130.04,52.94058]
[1725239323997,7.6877,130.08,130.04,45.0]
[1725239324296,7.6869,130.1,130.05,1.53748885]
[1725239324595,79.2763,130.15,130.05,20.76038885]
[1725239324894,7.6871,130.09,130.05,26.912]
[1725239325272,7.6879,130.08,130.04,7.6897]
[1725239325774,7.6879,130.08,130.05,1.53756188]
[1725239326396,7.6879,130.08,130.04,7.6897]
[1725239326597,19.2153,130.11,130.02,19.227]
[1725239326777,16.0794,130.1,130.02,19.227]
[1725239327097,7.6883,130.07,130.02,26.9176]
[1725239328297,6.4319,130.09,129.99,19.2315]
[1725239328590,7.6911,130.02,129.97,7.6939]
[1725239328977,7.6906,130.03,129.98,7.6932]
[1725239329173,19.2211,130.07,129.99,7.6926]
[1725239329376,0.12549,130.06,129.98,19.2329]
[1725239329998,19.2211,130.07,129.98,19.2329]
[1725239330294,19.2211,130.07,129.99,45.12549]
[1725239330685,7.6893,130.05,130.01,7.6916]
[1725239330896,7.6892,130.06,130.01,7.6917]
[1725239331083,6.4319,130.09,130.02,7.691]
[1725239331084,7.6883,130.07,130.02,7.691]
[1725239331287,7.6883,130.07,130.02,52.691]
[1725239331696,6.4319,130.09,130.03,20.76330415]
[1725239331900,7.687,130.09,130.03,20.76330415]
[1725239332106,7.687,130.09,130.03,19.2256]
[1725239332487,7.687,130.09,130.04,9.22731674]
[1725239333687,7.687,130.09,130.04,7.6898]
[1725239334114,7.687,130.09,130.05,7.6892]
[1725239334404,7.6865,130.1,130.05,52.6892]
[1725239334900,6.5332,130.12,130.06,7.6885]
[1725239335090,15.5776,130.13,130.05,64.2227]
[1725239335502,7.6863,130.11,130.06,7.6886]
[1725239336092,7.6864,130.1,130.06,7.6886]
[1725239336414,15.5776,130.13,130.08,7.6874]
[1725239336575,7.6855,130.12,130.07,26.9074]
[1725239337196,7.6858,130.11,130.07,19.2194]